fUST/lending_fUST_20240909
["ID","MTS","AMOUNT","RATE_DAILY","PERIOD"]
[337580927,1725851438615,-1780.55151248,0.00044631,2]
[337580928,1725851438625,-188.56905547,0.0004464,28]
[337580929,1725851438636,-153.0,0.00044658,2]
[337580930,1725851438649,-1710.02295994,0.00044664,2]
[337580983,1725851440454,-70.52855253,0.00044664,2]
[337580985,1725851440465,-1780.55151247,0.00044696,2]
[337580987,1725851440475,-1780.55151247,0.00044729,2]
[337580989,1725851440486,-160.0,0.0004473,2]
[337580991,1725851440496,-600.0,0.0004474,120]
[337580993,1725851440506,-600.0,0.0004474,120]
[337580995,1725851440516,-600.0,0.0004474,120]
[337580997,1725851440526,-600.0,0.0004474,120]
[337580999,1725851440536,-600.0,0.0004474,120]
[337581001,1725851440546,-600.0,0.0004474,120]
[337581003,1725851440556,-600.0,0.0004474,120]
[337581005,1725851440565,-600.0,0.0004474,120]
[337581007,1725851440575,-600.0,0.0004474,120]
[337581008,1725851440585,-600.0,0.0004474,120]
[337581009,1725851440594,-600.0,0.0004474,120]
[337581012,1725851440604,-600.0,0.0004474,120]
[337581014,1725851440614,-600.0,0.0004474,120]
[337581016,1725851440624,-600.0,0.0004474,120]
[337581018,1725851440634,-600.0,0.0004474,120]
[337581020,1725851440643,-600.0,0.0004474,120]
[337581022,1725851440652,-600.0,0.0004474,120]
[337581024,1725851440671,-600.0,0.0004474,120]
[337581026,1725851440682,-600.0,0.0004474,120]
[337581027,1725851440691,-600.0,0.0004474,120]
[337581028,1725851440702,-600.0,0.0004474,120]
[337581029,1725851440716,-600.0,0.0004474,120]
[337581030,1725851440726,-385.6368366,0.0004474,120]
[337581031,1725851440735,-1780.55151247,0.00044761,2]
[337581032,1725851440746,-184.629469,0.0004477,120]
[337581033,1725851440755,-184.629469,0.0004477,120]
[337581034,1725851440765,-330.98002958,0.00044779,120]
[337581036,1725851440775,-230.52810945,0.00044779,31]
[337581038,1725851440784,-500.0,0.00044779,120]
[337581040,1725851440794,-228.57545151,0.00044779,120]
[337581041,1725851440808,-530.71462938,0.00044779,120]
[337581042,1725851440818,-500.0,0.00044779,120]
[337581043,1725851440828,-500.0,0.00044779,120]
[337581044,1725851440838,-500.0,0.00044779,120]
[337581045,1725851440847,-500.0,0.00044779,7]
[337581046,1725851440857,-500.0,0.00044779,120]
[337581047,1725851440867,-500.0,0.00044779,120]
[337581048,1725851440876,-500.0,0.00044779,120]
[337581049,1725851440885,-500.0,0.00044779,7]
[337581050,1725851440895,-500.0,0.00044779,7]
[337581052,1725851440909,-500.0,0.00044779,120]
[337581053,1725851440919,-195.13512882,0.00044779,120]
[337581054,1725851440929,-500.0,0.00044779,7]
[337581055,1725851440939,-500.0,0.00044779,120]
[337581056,1725851440949,-500.0,0.00044779,7]
[337581057,1725851440959,-500.0,0.00044779,7]
[337581058,1725851440969,-500.0,0.00044779,120]
[337581059,1725851440978,-153.21157367,0.00044779,7]
[337581060,1725851440987,-503.98155449,0.00044779,120]
[337581061,1725851440998,-202.06286587,0.00044779,120]
[337581062,1725851441008,-500.0,0.00044779,7]
[337581063,1725851441019,-151.0,0.0004478,120]
[337581064,1725851441030,-87407.41074731,0.0004478,5]
[337581065,1725851443325,-41.53007096,0.0004478,5]
[337581073,1725851765450,400.0,0.00032,2]
[337581074,1725851992092,150.0,0.00032,2]
[337581077,1725852379663,12346.069417,0.0003,7]
[337581083,1725852545166,-161.0,0.00038966,30]
[337581084,1725852545189,-3067.68170119,0.00038967,2]
[337581143,1725852638592,-3036.56151565,0.00037472,61]
[337581145,1725852638604,-1963.43848435,0.00037472,61]
[337581147,1725852638614,-471.0438299,0.00038411,2]
[337581149,1725852638623,-1026.15224073,0.00038967,2]
[337581158,1725852638699,-2960.29950928,0.00038967,2]
[337581160,1725852638709,-165.138456,0.00039297,2]
[337581162,1725852638721,-165.138456,0.00039979,2]
[337581164,1725852638732,-1917.53088744,0.0004,2]
[337581166,1725852638743,-159.70931114,0.0004,30]
[337581169,1725852638755,-165.138456,0.00040662,2]
[337581171,1725852638764,-1897.67358953,0.00040775,2]
[337581173,1725852638773,-188.56905547,0.00040775,28]
[337581175,1725852638782,-432.42,0.00040865,3]
[337581177,1725852638792,-360.35,0.00040865,3]
[337581179,1725852638801,-300.3,0.00040865,3]
[337581181,1725852638811,-500.0,0.00040874,31]
[337581183,1725852638824,-500.0,0.00040874,7]
[337581186,1725852638836,-500.0,0.00040874,31]
[337581188,1725852638846,-202.06286587,0.00040874,31]
[337581190,1725852638857,-153.21157367,0.00040874,7]
[337581192,1725852638867,-500.0,0.00040874,31]
[337581194,1725852638877,-500.0,0.00040874,7]
[337581196,1725852638887,-500.0,0.00040874,31]
[337581198,1725852638896,-500.0,0.00040874,31]
[337581200,1725852638906,-195.13512882,0.00040874,31]
[337581202,1725852638915,-500.0,0.00040874,31]
[337581204,1725852638925,-500.0,0.00040874,31]
[337581206,1725852638934,-500.0,0.00040874,7]
[337581208,1725852638944,-500.0,0.00040874,7]
[337581229,1725852638953,-500.0,0.00040874,7]
[337581231,1725852639184,-500.0,0.00040874,7]
[337581233,1725852639195,-500.0,0.00040874,7]
[337581235,1725852639204,-15372.53504586,0.00040875,2]
[337581237,1725852639214,-98625.66050712,0.00040875,2]
[337581239,1725852639224,-17975.57786088,0.00040875,2]
[337581241,1725852639233,-25464.36952443,0.00040875,2]
[337581243,1725852639242,-794.75020699,0.00040875,2]
[337581245,1725852639252,-4044.88222653,0.00040875,2]
[337581247,1725852639262,-222.0,0.00040875,2]
[337581249,1725852639271,-165.138456,0.00041345,2]
[337581251,1725852639282,-1897.67358952,0.00041719,2]
[337581253,1725852639291,-188.56905546,0.00042079,28]
[337581255,1725852639301,-706.918206,0.0004256,6]
[337581257,1725852639310,-1897.67358952,0.00042663,2]
[337581258,1725852639320,-188.56905546,0.00043382,28]
[337581260,1725852639330,-1897.67358952,0.00043606,2]
[337581262,1725852639340,-246.22408629,0.00043836,2]
[337581264,1725852639349,-726.113167,0.00043836,120]
[337581266,1725852639363,-350.0,0.00044,120]
[337581268,1725852639372,-735.04897485,0.00044451,2]
[337581270,1725852639382,-2593.52615345,0.00044465,2]
[337581271,1725852639391,-500.0,0.00044499,120]
[337581272,1725852639402,-425.94129367,0.00044499,120]
[337581273,1725852639411,-279.50372821,0.00044499,31]
[337581274,1725852639421,-286.66222707,0.00044499,120]
[337581275,1725852639431,-576.62416924,0.00044499,120]
[337581276,1725852639441,-500.0,0.00044499,120]
[337581277,1725852639452,-5000.0,0.000445,50]
[337581278,1725852639462,-452.30141952,0.0004455,2]
[337581279,1725852639471,-1897.67358952,0.0004455,2]
[337581280,1725852639481,-105740.268325,0.00044611,5]
[337581281,1725852639490,-2323.81207338,0.00044611,5]
[337581282,1725852639499,-160.0,0.0004462,2]
[337581283,1725852639509,-88888.0,0.00044621,120]
[337581284,1725852639518,-151.0,0.00044621,120]
[337581285,1725852639528,-105740.268325,0.00044649,5]
[337581286,1725852639537,-2323.81207338,0.00044649,5]
[337581287,1725852639546,-569.85810247,0.0004465,61]
[337581288,1725852639556,-23995.8206939,0.0004465,7]
[337581289,1725852639565,-163.870294,0.0004465,120]
[337581290,1725852639574,-39136.63183343,0.00044651,5]
[337581291,1725852639587,-12834.54640123,0.00044651,5]
[337581292,1725852639598,-13884.30224263,0.00044651,5]
[337581307,1725852640731,-117890.15040209,0.00044651,5]
[337581378,1725853072499,1100.0,0.00040863,39]
[337581379,1725853200266,200.0,0.00032,2]
[337581381,1725853626156,-165.125403,0.00039949,2]
[337581382,1725853626177,-37.239849,0.0004,30]
[337581383,1725853639136,-1962.760151,0.0004,30]
[337581384,1725853639159,-1965.48268759,0.00040858,30]
[337581385,1725853639180,-179.9930984,0.00041096,2]
[337581386,1725853639201,-266.67020348,0.00041096,2]
[337581387,1725853639224,-165.125403,0.00042031,2]
[337581388,1725853639246,-706.918206,0.0004256,6]
[337581389,1725853639268,-6000.0,0.000435,50]
[337581390,1725853639292,-2801.03978061,0.00043562,120]
[337581391,1725853639314,-1000.0,0.00043836,120]
[337581392,1725853639336,-887.06768916,0.00044121,2]
[337581394,1725853770119,-165.1384561,0.00040529,2]
[337581503,1725853838682,-300.0,0.00044199,30]
[337581505,1725853838692,-303.0,0.00044199,5]
[337581507,1725853838702,-222.0,0.000442,2]
[337581509,1725853838712,-1048.13654197,0.000442,30]
[337581512,1725853838735,-93286.38453503,0.000442,30]
[337581514,1725853838747,-735.04897485,0.00044224,2]
[337581516,1725853838758,-2688.56910547,0.00044318,28]
[337581518,1725853838768,-1951.55047032,0.00044319,2]
[337581519,1725853838779,-1951.55047032,0.00044322,2]
[337581521,1725853838788,-1951.55047032,0.00044324,2]
[337581523,1725853838797,-1951.55047032,0.00044327,2]
[337581525,1725853838807,-1951.55047032,0.00044329,2]
[337581527,1725853838817,-354.54309633,0.00044409,2]
[337581538,1725853839023,-347702.850058,0.00044409,5]
[337581539,1725853839034,-6622.86440946,0.00044409,5]
[337581540,1725853839044,-610.56012859,0.00044418,120]
[337581541,1725853839054,-425.94129367,0.00044419,120]
[337581542,1725853839064,-500.0,0.00044419,120]
[337581543,1725853839074,-500.0,0.00044419,7]
[337581544,1725853839084,-500.0,0.00044419,120]
[337581545,1725853839094,-500.0,0.00044419,120]
[337581546,1725853839103,-202.06286587,0.00044419,120]
[337581547,1725853839114,-153.21157367,0.00044419,7]
[337581548,1725853839123,-503.98155449,0.00044419,120]
[337581549,1725853839133,-500.0,0.00044419,120]
[337581550,1725853839142,-195.13512882,0.00044419,120]
[337581551,1725853839152,-500.0,0.00044419,7]
[337581552,1725853839162,-500.0,0.00044419,120]
[337581553,1725853839171,-500.0,0.00044419,7]
[337581554,1725853839182,-500.0,0.00044419,120]
[337581555,1725853839192,-500.0,0.00044419,120]
[337581556,1725853839201,-500.0,0.00044419,7]
[337581557,1725853839211,-500.0,0.00044419,7]
[337581558,1725853839220,-500.0,0.00044419,7]
[337581559,1725853839229,-500.0,0.00044419,7]
[337581560,1725853839239,-500.0,0.00044419,120]
[337581561,1725853839249,-500.0,0.00044419,120]
[337581562,1725853839258,-8830.48587928,0.0004442,5]
[337581563,1725853839267,-569.85810247,0.00044429,61]
[337581564,1725853839276,-83460.56305443,0.0004443,2]
[337581565,1725853839288,-12834.54640123,0.0004443,2]
[337581566,1725853840834,-432.42,0.00044309,3]
[337581567,1725853840844,-73750.0352611,0.0004443,2]
[337581568,1725853840853,-452.30141952,0.00044439,2]
[337581569,1725853840863,-4415.24293964,0.0004444,5]
[337581570,1725853840872,-5395.88463112,0.00044449,61]
[337581571,1725853840883,-34963.97884662,0.0004445,120]
[337581582,1725853843519,-53924.02115338,0.0004445,120]
[337581583,1725853843530,-320.290911,0.0004445,120]
[337581584,1725853843540,-320.290911,0.0004445,120]
[337581585,1725853843549,-151.0,0.0004445,120]
[337581586,1725853843564,-151.0,0.0004445,120]
[337581587,1725853843586,-195.219399,0.0004445,120]
[337581588,1725853843596,-151.0,0.0004445,120]
[337581589,1725853843606,-151.0,0.0004445,120]
[337581590,1725853843616,-151.0,0.0004445,120]
[337581591,1725853843626,-151.0,0.0004445,120]
[337581592,1725853843635,-151.0,0.0004445,120]
[337581593,1725853843645,-151.0,0.0004445,120]
[337581594,1725853843654,-151.0,0.0004445,120]
[337581595,1725853843664,-223.297793,0.0004445,120]
[337581596,1725853843673,-223.297793,0.0004445,120]
[337581597,1725853843682,-151.0,0.0004445,30]
[337581598,1725853843692,-151.0,0.0004445,30]
[337581599,1725853843701,-429.006812,0.0004445,120]
[337581600,1725853843711,-429.006812,0.0004445,120]
[337581601,1725853843720,-151.378821,0.0004445,2]
[337581602,1725853843730,-500.0,0.00044473,10]
[337581603,1725853843743,-2207.62146982,0.0004448,5]
[337581604,1725853843753,-320.290911,0.0004449,120]
[337581605,1725853843763,-320.290911,0.0004449,120]
[337581606,1725853843773,-151.0,0.0004449,120]
[337581607,1725853843782,-151.0,0.0004449,120]
[337581608,1725853843792,-151.0,0.0004449,120]
[337581609,1725853843801,-151.0,0.0004449,120]
[337581610,1725853843810,-151.0,0.0004449,120]
[337581611,1725853843820,-151.0,0.0004449,120]
[337581612,1725853843829,-151.0,0.0004449,120]
[337581613,1725853843838,-152.803863,0.0004449,120]
[337581614,1725853843847,-163.870294,0.0004449,120]
[337581615,1725853843856,-223.297793,0.0004449,120]
[337581616,1725853843866,-2207.62146982,0.0004449,5]
[337581617,1725853843875,-223.297793,0.0004449,120]
[337581618,1725853843884,-151.0,0.0004449,30]
[337581619,1725853843893,-151.0,0.0004449,30]
[337581620,1725853843902,-429.006812,0.0004449,120]
[337581621,1725853843911,-429.006812,0.0004449,120]
[337581622,1725853843921,-36125.90539162,0.000445,7]
[337581623,1725853843930,-4415.24293964,0.00044529,5]
[337581624,1725853843939,-151.0,0.00044539,120]
[337581625,1725853843949,-151.0,0.00044539,14]
[337581626,1725853843958,-320.290911,0.00044539,120]
[337581627,1725853843967,-320.290911,0.00044539,120]
[337581628,1725853843977,-151.0,0.00044539,120]
[337581629,1725853843991,-151.0,0.00044539,120]
[337581630,1725853844002,-151.0,0.00044539,120]
[337581631,1725853844013,-151.0,0.00044539,120]
[337581632,1725853844023,-151.0,0.00044539,120]
[337581633,1725853844034,-151.0,0.00044539,120]
[337581634,1725853844044,-294.249966,0.00044539,120]
[337581635,1725853844055,-223.297793,0.00044539,120]
[337581636,1725853844065,-223.297793,0.00044539,120]
[337581637,1725853844074,-151.0,0.00044539,30]
[337581638,1725853844084,-151.0,0.00044539,30]
[337581639,1725853844094,-429.006812,0.00044539,120]
[337581640,1725853844104,-429.006812,0.00044539,120]
[337581641,1725853844115,-152.267018,0.0004455,30]
[337581642,1725853844124,-409.713453,0.0004455,120]
[337581643,1725853844134,-264.789859,0.0004455,120]
[337581644,1725853844144,-409.713453,0.0004455,120]
[337581645,1725853844154,-264.789859,0.0004455,120]
[337581646,1725853844164,-151.0,0.0004455,120]
[337581647,1725853844174,-151.0,0.0004455,120]
[337581648,1725853844184,-151.0,0.0004455,14]
[337581649,1725853844193,-326.94008,0.0004455,120]
[337581650,1725853844205,-326.94008,0.0004455,120]
[337581651,1725853844217,-151.0,0.0004455,120]
[337581652,1725853844226,-151.0,0.0004455,120]
[337581653,1725853844238,-151.0,0.00044621,120]
[337581654,1725853844248,-151.0,0.0004465,120]
[337581655,1725853844257,-151.0,0.0004465,120]
[337581656,1725853844267,-151.0,0.00044659,120]
[337581657,1725853844277,-151.0,0.00044659,120]
[337581658,1725853844287,-151.0,0.00044659,120]
[337581659,1725853844298,-151.0,0.00044659,120]
[337581660,1725853844308,-151.0,0.00044659,7]
[337581661,1725853844318,-151.0,0.00044659,7]
[337581662,1725853844328,-151.0,0.00044659,120]
[337581663,1725853844338,-151.0,0.00044659,120]
[337581664,1725853844351,-151.0,0.00044659,120]
[337581665,1725853844361,-151.0,0.00044659,120]
[337581666,1725853844371,-151.0,0.00044659,120]
[337581667,1725853844382,-152.188638,0.00044659,120]
[337581668,1725853844393,-151.0,0.00044659,120]
[337581669,1725853844404,-600.0,0.0004466,120]
[337581670,1725853844414,-600.0,0.0004466,120]
[337581671,1725853844424,-600.0,0.0004466,120]
[337581672,1725853844434,-600.0,0.0004466,120]
[337581673,1725853844444,-600.0,0.0004466,120]
[337581674,1725853844454,-600.0,0.0004466,120]
[337581675,1725853844463,-600.0,0.0004466,120]
[337581676,1725853844473,-600.0,0.0004466,120]
[337581677,1725853844485,-600.0,0.0004466,120]
[337581678,1725853844495,-600.0,0.0004466,120]
[337581679,1725853844504,-600.0,0.0004466,120]
[337581680,1725853844514,-600.0,0.0004466,120]
[337581681,1725853844525,-600.0,0.0004466,120]
[337581682,1725853844535,-600.0,0.0004466,120]
[337581683,1725853844545,-600.0,0.0004466,120]
[337581684,1725853844554,-600.0,0.0004466,120]
[337581685,1725853844564,-600.0,0.0004466,120]
[337581686,1725853844577,-600.0,0.0004466,120]
[337581687,1725853844586,-600.0,0.0004466,120]
[337581688,1725853844596,-600.0,0.0004466,120]
[337581689,1725853844605,-600.0,0.0004466,120]
[337581690,1725853844615,-600.0,0.0004466,120]
[337581691,1725853844625,-151.0,0.00044661,120]
[337581692,1725853844635,-151.0,0.00044661,120]
[337581693,1725853844644,-189.921894,0.00044661,120]
[337581694,1725853844654,-151.0,0.00044661,120]
[337581695,1725853844663,-151.0,0.00044661,7]
[337581696,1725853844672,-291.44146,0.00044661,120]
[337581697,1725853844683,-151.0,0.00044661,7]
[337581698,1725853844692,-157.827803,0.00044661,120]
[337581699,1725853844701,-274.789636,0.00044661,120]
[337581700,1725853844710,-151.0,0.00044661,120]
[337581701,1725853844720,-152.212518,0.00044661,14]
[337581702,1725853844730,-151.0,0.0004467,120]
[337581703,1725853844741,-151.0,0.0004467,120]
[337581704,1725853844751,-151.0,0.0004467,120]
[337581705,1725853844761,-151.0,0.0004467,120]
[337581706,1725853844770,-151.0,0.0004467,7]
[337581707,1725853844780,-151.0,0.0004467,120]
[337581708,1725853844790,-500.0,0.00044731,14]
[337581709,1725853844802,-500.0,0.00044731,14]
[337581710,1725853844811,-500.0,0.00044731,14]
[337581711,1725853844821,-500.0,0.00044731,14]
[337581712,1725853844830,-500.0,0.00044731,14]
[337581713,1725853844839,-500.0,0.00044731,14]
[337581714,1725853844849,-500.0,0.00044731,14]
[337581715,1725853844858,-500.0,0.00044731,14]
[337581716,1725853844867,-500.0,0.00044731,14]
[337581717,1725853844876,-501.26887642,0.00044731,14]
[337581718,1725853844886,-500.0,0.00044731,14]
[337581719,1725853844896,-500.0,0.00044731,14]
[337581720,1725853844905,-500.0,0.00044731,14]
[337581721,1725853844915,-500.2054116,0.00044731,14]
[337581722,1725853844924,-409.713453,0.00044731,120]
[337581723,1725853844934,-264.789859,0.00044731,120]
[337581724,1725853844944,-409.713453,0.00044731,120]
[337581725,1725853844954,-264.789859,0.00044731,120]
[337581726,1725853844963,-153.27854,0.00044731,120]
[337581727,1725853844973,-326.94008,0.00044731,120]
[337581728,1725853844985,-326.94008,0.00044731,120]
[337581729,1725853844996,-230.797355,0.00044731,120]
[337581730,1725853845006,-151.0,0.00044731,120]
[337581731,1725853845016,-306.41573918,0.00044749,7]
[337581732,1725853845026,-151.0,0.0004475,120]
[337581733,1725853845037,-167.664723,0.0004475,120]
[337581734,1725853845047,-155.052326,0.0004475,120]
[337581735,1725853845057,-151.0,0.0004475,120]
[337581736,1725853845067,-2207.62146982,0.0004475,5]
[337581737,1725853845079,-1945.96648213,0.0004476,2]
[337581738,1725853845091,-320.290911,0.0004476,120]
[337581739,1725853845100,-320.290911,0.0004476,120]
[337581740,1725853845110,-151.0,0.0004476,120]
[337581741,1725853845119,-151.0,0.0004476,120]
[337581742,1725853845129,-151.0,0.0004476,120]
[337581743,1725853845138,-429.006812,0.0004476,120]
[337581744,1725853845149,-429.006812,0.0004476,120]
[337581745,1725853845159,-184.629469,0.00044761,120]
[337581746,1725853845169,-184.629469,0.00044761,120]
[337581747,1725853845178,-151.0,0.00044761,120]
[337581748,1725853845188,-300.0,0.00044764,7]
[337581749,1725853845198,-300.0,0.0004477,7]
[337581750,1725853845207,-300.0,0.0004477,7]
[337581751,1725853845217,-300.0,0.0004477,7]
[337581752,1725853845226,-151.0,0.0004477,120]
[337581753,1725853845236,-1706.45846429,0.00044774,2]
[337581754,1725853845246,-184.629469,0.0004478,120]
[337581755,1725853845256,-184.629469,0.0004478,120]
[337581756,1725853845275,-151.0,0.0004478,120]
[337581757,1725853845286,-2000.0,0.0004478,120]
[337581758,1725853845297,-156.383441,0.000448,7]
[337581759,1725853845306,-320.290911,0.000448,120]
[337581760,1725853845316,-320.290911,0.000448,120]
[337581761,1725853845325,-151.0,0.000448,120]
[337581762,1725853845335,-151.0,0.000448,120]
[337581763,1725853845347,-151.0,0.000448,120]
[337581764,1725853845357,-151.0,0.000448,120]
[337581765,1725853845366,-151.0,0.000448,120]
[337581766,1725853845375,-280.380776,0.000448,120]
[337581767,1725853845387,-223.297793,0.000448,120]
[337581768,1725853845396,-223.297793,0.000448,120]
[337581769,1725853845405,-151.0,0.000448,30]
[337581770,1725853845415,-151.0,0.000448,30]
[337581771,1725853845425,-429.006812,0.000448,120]
[337581772,1725853845435,-429.006812,0.000448,120]
[337581773,1725853845445,-151.0,0.00044849,120]
[337581774,1725853845454,-151.0,0.00044849,120]
[337581775,1725853845464,-150.0,0.00044873,10]
[337581776,1725853845474,-151.0,0.0004488,120]
[337581777,1725853845483,-152.79329,0.0004489,120]
[337581778,1725853845494,-184.629469,0.0004489,120]
[337581779,1725853845504,-184.629469,0.0004489,120]
[337581780,1725853845514,-151.0,0.0004489,120]
[337581781,1725853845524,-13245.7288189,0.0004489,5]
[337581782,1725853845533,-268654.21581696,0.000449,3]
[337581783,1725853845571,-47.55744887,0.000449,3]
[337581784,1725853845583,-146695.62097,0.000449,3]
[337581787,1725853846806,-344.68992497,0.00044408,120]
[337581788,1725853846816,-500.0,0.00044408,120]
[337581789,1725853846826,-286.66222707,0.00044408,120]
[337581790,1725853846837,-279.50372821,0.00044408,31]
[337581791,1725853846847,-500.0,0.00044408,120]
[337581792,1725853846858,-270.61984378,0.00044408,120]
[337581793,1725853846867,-500.0,0.00044408,120]
[337581794,1725853846876,-1783.32779673,0.000449,3]
[337581795,1725853846903,-25935.93399698,0.000449,3]
[337581796,1725853863375,801.8553,0.00041,120]
[337581799,1725854572217,2721.0,0.0004086,30]
[337581800,1725854747153,-1863.136542,0.00039085,2]
[337581801,1725854747173,-166.09870761,0.00041096,2]
[337581802,1725854747193,-327.11526108,0.00043562,120]
[337581803,1725854747212,-950.0,0.00043836,120]
[337581804,1725854747232,-160.0,0.00043911,3]
[337581805,1725854747253,-9000.0,0.00043922,4]
[337581806,1725854747273,-445.5319703,0.00044247,2]
[337581807,1725854747292,-208.54,0.0004428,3]
[337581808,1725854747317,-200.66355895,0.00044288,120]
[337581809,1725854747352,-500.0,0.00044288,120]
[337581810,1725854747379,-195.65260975,0.00044288,31]
[337581811,1725854747411,-369.06533558,0.00044288,120]
[337581812,1725854747443,-500.0,0.00044288,120]
[337581813,1725854747473,-239.43389064,0.00044288,120]
[337581814,1725854747503,-500.0,0.00044288,120]
[337581815,1725854747533,-500.0,0.00044288,120]
[337581816,1725854747559,-500.0,0.00044288,120]
[337581817,1725854747590,-500.0,0.00044288,7]
[337581818,1725854747620,-500.0,0.00044288,120]
[337581819,1725854747651,-500.0,0.00044288,120]
[337581820,1725854747676,-195.13512882,0.00044288,120]
[337581821,1725854747702,-500.0,0.00044288,120]
[337581822,1725854747732,-500.0,0.00044288,7]
[337581823,1725854747760,-503.98155449,0.00044288,120]
[337581824,1725854747787,-500.0,0.00044288,120]
[337581825,1725854747814,-500.0,0.00044288,7]
[337581826,1725854747843,-153.21157367,0.00044288,7]
[337581827,1725854747868,-202.06286587,0.00044288,120]
[337581828,1725854747895,-500.0,0.00044288,7]
[337581829,1725854747922,-500.0,0.00044288,7]
[337581830,1725854747950,-500.0,0.00044288,120]
[337581831,1725854747979,-500.0,0.00044288,7]
[337581832,1725854748006,-500.0,0.00044288,120]
[337581833,1725854748034,-500.0,0.00044288,7]
[337581834,1725854748062,-108966.94779209,0.00044289,5]
[337581835,1725854849091,-500.0,0.0004,2]
[337581836,1725854849113,-500.0,0.00044288,120]
[337581837,1725854849134,-500.0,0.00044288,120]
[337581838,1725854849156,-5933.52570891,0.00044289,5]
[337581839,1725854849180,-75746.2560763,0.00044289,5]
[337581840,1725854849203,-151.0,0.0004445,120]
[337581841,1725854849229,-151.0,0.0004449,120]
[337581842,1725854849254,-151.0,0.00044539,120]
[337581843,1725854849277,-360.35,0.00044599,3]
[337581844,1725854849299,-31441.35253788,0.00044609,4]
[337581845,1725854849321,-411.00963073,0.00044687,7]
[337581846,1725854849341,-483.50411203,0.0004469,2]
[337581847,1725854849363,-2000.0,0.0004476,120]
[337581848,1725854849385,-500.0,0.00044769,120]
[337581849,1725854849406,-195.65260975,0.00044769,31]
[337581850,1725854849428,-369.06533558,0.00044769,120]
[337581851,1725854849450,-200.66355895,0.00044769,120]
[337581852,1725854849476,-239.43389064,0.00044769,120]
[337581853,1725854849500,-500.0,0.00044769,120]
[337581854,1725854849522,-151.0,0.0004477,120]
[337581855,1725854849544,-243.827409,0.0004477,120]
[337581856,1725854849567,-98946.0764633,0.0004477,5]
[337581857,1725854945107,-166.09870761,0.00041096,2]
[337581858,1725854979741,799.85,0.00041,120]
[337581905,1725855037880,-327.11526108,0.00043562,120]
[337581907,1725855037890,-2912.19698575,0.0004467,28]
[337581909,1725855037900,-223.83,0.00044751,3]
[337581911,1725855037910,-262.99,0.00044751,3]
[337581913,1725855037921,-500.0,0.00044759,120]
[337581916,1725855037931,-258.3457349,0.00044759,120]
[337581918,1725855037941,-355.78476287,0.00044759,120]
[337581920,1725855037951,-405.91239707,0.00044759,7]
[337581922,1725855037961,-367.60372345,0.00044759,120]
[337581924,1725855037970,-100154.05591994,0.0004476,5]
[337581930,1725855038086,-219.16,0.00044751,3]
[337581931,1725855038096,-12615.38640123,0.0004476,5]
[337581958,1725855045823,-604.9,0.0004476,120]
[337581959,1725855046017,-1395.1,0.0004476,120]
[337581960,1725855046027,-119966.58897385,0.0004476,5]
[337581961,1725855109298,1674.40806775,0.00035956,2]
[337581962,1725855109323,198.72847425,0.00035956,2]
[337581963,1725855138144,182.6315825,0.00036226,2]
[337581964,1725855267403,151.0,0.0003,120]
[337581965,1725855494522,150.47855442,0.00032,2]
[337581970,1725856056194,150.0,0.00032,2]
[337581971,1725856079559,200.0,0.00032,2]
[337581972,1725856120900,253.59913628,0.00040866,30]
[337581992,1725856160143,-150.0,0.00035,2]